bitfinex/quotes_ETHUSD_20250623
["timestamp","ask_amount","ask_price","bid_price","bid_amount"]
[1750699217036,3.047,2254.7,2253.5,4.43749478]
[1750699217037,3.047,2254.7,2253.6,4.43724551]
[1750699217469,10.664,2255.2,2253.3,0.55]
[1750699217798,3.047,2254.9,2253.7,4.43713702]
[1750699217971,10.3047,2254.8,2253.6,4.43723868]
[1750699218133,10.3047,2254.8,2253.5,7.48448523]
[1750699218134,10.3047,2254.8,2253.5,3.047]
[1750699218340,10.3047,2254.8,2253.7,4.43711554]
[1750699218549,0.3047,2254.8,2253.5,3.047]
[1750699218736,14.56346126,2255.4,2254.0,4.43639032]
[1750699218938,3.047,2255.3,2254.0,4.43639032]
[1750699219197,10.0,2255.2,2254.0,4.43639032]
[1750699219540,10.0,2255.2,2253.8,9.067]
[1750699219850,24.56346126,2255.2,2253.6,10.0]
[1750699220069,2.45634613,2255.1,2253.7,0.90972619]
[1750699220359,10.0,2254.9,2253.7,0.90972619]
[1750699220567,10.0,2254.3,2252.5,4.43951165]
[1750699220869,10.0,2254.4,2252.9,4.43870153]
[1750699221049,3.047,2254.3,2253.1,4.43816936]
[1750699221249,3.047,2254.3,2252.8,4.43884282]
[1750699221470,14.56346126,2254.0,2252.1,0.7608]
[1750699221677,10.0,2253.9,2252.4,13.50054335]
[1750699221890,10.0,2253.9,2252.2,10.0]
[1750699222179,10.0,2253.9,2252.1,3.8078]
[1750699222180,10.0,2253.9,2252.3,13.49981036]
[1750699222380,10.0,2253.9,2252.6,4.4392908]
[1750699222565,10.0,2253.9,2252.7,0.44392908]
[1750699222566,12.45634613,2253.9,2252.7,0.44392908]
[1750699222878,12.45634613,2253.9,2252.3,13.4998685]
[1750699223079,10.0,2253.7,2252.4,0.8299]
[1750699223381,10.0,2253.7,2252.4,4.43970605]
[1750699223755,10.0,2253.7,2252.5,4.43951165]
[1750699223955,1.3047,2254.2,2253.1,4.43817651]
[1750699224185,1.3047,2254.2,2252.4,25.11346126]
[1750699224186,3.046,2254.3,2252.8,4.43880993]
[1750699224483,10.0,2254.2,2252.9,4.43868393]
[1750699224679,3.046,2254.3,2253.0,0.55]
[1750699224847,3.046,2254.4,2253.5,4.43751876]
[1750699225042,17.01980739,2255.1,2253.4,0.55]
[1750699225043,2.45634613,2255.1,2253.4,0.55]
[1750699225246,3.046,2255.0,2253.5,0.3596]
[1750699225476,3.046,2255.0,2253.6,4.43725096]
[1750699225679,3.046,2255.0,2253.8,4.43686192]
[1750699225680,10.0,2254.9,2253.8,4.43686192]
[1750699225845,3.046,2255.0,2253.5,13.8501134]
[1750699226047,3.046,2255.0,2253.6,4.43728807]
[1750699226272,3.3506,2254.9,2253.7,5.82206031]
[1750699226579,3.3506,2254.9,2253.7,1.38498881]
[1750699226772,3.3506,2254.9,2253.9,4.43672203]
[1750699227085,0.3046,2254.9,2253.9,4.43672203]
[1750699227271,10.0,2254.9,2253.8,4.43685358]
[1750699227469,10.0,2254.9,2253.7,1.38498881]
[1750699227669,10.0,2254.9,2253.5,9.053]
[1750699227863,10.0,2254.9,2252.9,4.43860356]
[1750699227864,10.0,2254.6,2252.8,10.7951]
[1750699228063,10.662,2255.4,2253.0,10.0]
[1750699228400,10.0,2255.2,2253.9,4.43670357]
[1750699228548,10.0,2255.2,2253.7,13.48504286]
[1750699228752,10.0,2255.0,2254.0,4.43644751]
[1750699228981,13.007,2255.0,2253.7,9.048]
[1750699229182,13.007,2255.0,2253.9,4.43658882]
[1750699229383,13.007,2255.0,2253.9,4.43665861]
[1750699229680,3.007,2255.0,2253.8,4.43695092]
[1750699229884,13.669,2255.4,2254.0,19.00001849]
[1750699230086,13.669,2255.4,2254.3,4.43596681]
[1750699230284,10.661,2256.2,2254.9,4.43468775]
[1750699230486,3.007,2256.1,2254.8,4.43479883]
[1750699230694,10.0,2256.0,2254.8,9.043]
[1750699230853,10.0,2256.0,2254.8,14.11761927]
[1750699231053,3.006,2256.0,2254.8,14.11761927]
[1750699231284,10.0,2256.1,2254.8,9.68272198]
[1750699231569,10.2255101,2255.8,2254.8,9.043]
[1750699231769,10.2255101,2255.8,2254.8,13.47789198]
[1750699231969,0.2255101,2255.8,2254.9,4.43464537]
[1750699232292,0.2255101,2255.8,2255.0,0.8042]
[1750699232495,0.2255101,2255.8,2255.7,4.43321363]
[1750699232701,3.006,2258.0,2255.8,0.8042]
[1750699232880,3.006,2258.0,2256.5,12.46557682]
[1750699233194,10.0,2257.9,2256.6,9.037]
[1750699233365,1.3006,2257.8,2256.3,0.55]
[1750699233691,10.0,2257.7,2255.9,14.26103021]
[1750699233891,3.006,2257.6,2255.9,9.8284]
[1750699234107,3.006,2257.6,2255.9,14.26112524]
[1750699234256,15.47157682,2257.6,2255.9,9.036]
[1750699234454,14.55215768,2257.5,2255.9,9.036]
[1750699234681,12.46557682,2257.3,2255.7,4.43318164]
[1750699234898,10.0,2257.2,2255.5,9.034]
[1750699235216,12.46557682,2256.7,2255.2,9.03]
[1750699235509,10.0,2256.5,2255.1,3.005]
[1750699235666,1.3005,2256.4,2255.2,1.3664]
[1750699235868,10.0,2256.4,2254.7,0.7793]
[1750699236076,10.0,2256.4,2254.9,9.028]
[1750699236266,10.0,2256.4,2255.0,4.43455252]
[1750699236470,12.46557682,2256.0,2254.1,12.46557682]
[1750699236660,10.656,2256.3,2253.4,4.43759499]
[1750699236661,10.0,2255.6,2253.9,3.7957]
[1750699236862,2.24655768,2255.5,2254.1,4.43625701]
[1750699237076,2.24655768,2255.5,2254.0,0.37957]
[1750699237287,10.0,2255.3,2254.2,4.43598684]
[1750699237698,4.42064236,2257.7,2255.2,12.46557682]
[1750699237913,0.2255101,2258.1,2257.7,4.42928644]
[1750699238058,8.76486988,2260.0,2257.9,0.55]
[1750699238059,4.2044,2260.0,2257.9,0.55]
[1750699238259,0.23166994,2259.4,2257.9,0.55]
[1750699238459,3.005,2259.5,2257.5,3.774]
[1750699238697,14.49743613,2259.3,2257.5,0.3774]
[1750699239000,14.49743613,2259.3,2257.5,9.024]
[1750699239196,18.70183613,2259.3,2257.1,25.15243613]
[1750699239371,14.49743613,2258.9,2256.7,18.9285231]
[1750699239568,10.0,2258.7,2256.8,19.024]
[1750699239772,10.0,2258.4,2256.6,4.43141759]
[1750699239974,10.0,2258.0,2254.7,3.3057908]
[1750699240173,4.3055,2258.6,2255.5,4.4334702]
[1750699240174,10.0,2256.8,2255.5,4.4334702]
[1750699240371,1.16631984,2257.3,2256.0,14.49743613]
[1750699240700,3.004,2257.2,2255.5,4.43360673]
[1750699240863,10.0,2257.0,2255.8,14.49743613]
[1750699241202,10.0,2257.0,2255.9,9.02]
[1750699241362,10.0,2257.0,2255.9,13.45271471]
[1750699241562,10.0,2257.0,2256.0,9.02]
[1750699242084,10.0,2257.0,2255.8,4.4329529]
[1750699242291,1.33044,2256.9,2255.9,9.02]
[1750699242489,1.33044,2256.9,2256.0,9.02]
[1750699242968,3.3044,2257.1,2256.3,4.4319294]
[1750699243166,0.3004,2257.1,2256.1,9.02]
[1750699243402,3.004,2257.2,2256.1,9.02]
[1750699243577,3.004,2257.2,2256.2,9.02]
[1750699243895,3.004,2257.2,2255.7,14.43302118]
[1750699244116,24.49743613,2257.7,2256.2,9.02]
[1750699244418,10.0,2257.5,2256.2,9.02]
[1750699244718,1.3004,2257.4,2256.2,9.02]
[1750699245016,1.3004,2257.4,2256.2,13.45212552]
[1750699245176,1.3004,2257.4,2256.3,9.019]
[1750699245378,1.3004,2257.4,2255.7,10.0]
[1750699245580,1.3004,2257.4,2255.8,13.45184794]
[1750699245819,1.13004,2257.3,2256.0,4.43251947]
[1750699246002,1.13004,2257.3,2255.8,9.019]
[1750699246342,10.651,2257.8,2256.0,14.49743613]
[1750699246542,3.004,2257.7,2256.4,4.43167377]
[1750699246678,10.0,2257.6,2256.1,10.0]
[1750699246884,10.0,2257.6,2256.2,13.45119283]
[1750699247439,10.0,2257.6,2256.1,10.0]
[1750699247618,1.3004,2257.5,2256.5,4.43147687]
[1750699248121,10.0,2257.6,2256.7,4.43107786]
[1750699248284,10.0,2257.6,2256.8,4.43103246]
[1750699248687,10.0,2257.6,2256.7,4.43114718]
[1750699249196,10.0,2257.6,2256.6,4.43134573]
[1750699249392,10.0,2257.6,2256.7,4.43122412]
[1750699249722,10.0,2257.7,2256.2,11.0]
[1750699249906,10.0,2257.7,2256.7,9.017]
[1750699250109,10.0,2257.7,2256.8,4.43093455]
[1750699250303,10.0,2257.7,2256.7,9.017]
[1750699250628,10.0,2257.9,2256.2,1.0]
[1750699250928,1.3003,2257.8,2256.3,9.016]
[1750699251119,14.49743613,2257.6,2256.3,9.016]
[1750699251429,10.0,2257.5,2256.3,9.016]
[1750699251651,10.0,2257.3,2256.3,9.016]
[1750699252234,10.0,2257.7,2256.3,9.016]
[1750699252438,10.0,2257.5,2256.4,9.016]
[1750699253340,10.0,2257.5,2256.5,9.015]
[1750699253917,10.0,2257.5,2256.3,4.43195448]
[1750699254162,10.0,2257.5,2256.5,9.015]
[1750699254473,20.648,2257.5,2256.1,9.015]
[1750699254671,1.456614,2257.4,2256.1,9.015]
[1750699254957,1.456614,2257.4,2256.2,9.015]
[1750699255449,1.456614,2257.4,2256.3,9.015]
[1750699256019,1.456614,2257.4,2256.3,13.44701302]
[1750699256219,2.16942741,2257.3,2255.9,0.55]
[1750699256435,2.16942741,2257.3,2256.1,4.43235441]
[1750699256609,2.16942741,2257.3,2256.1,4.43232847]
[1750699256812,2.16942741,2257.3,2256.3,4.43198842]
[1750699257650,2.16942741,2257.3,2256.5,4.43152355]
[1750699257886,3.003,2257.8,2256.6,4.43127061]
[1750699258146,10.0,2257.7,2256.8,4.43092171]
[1750699258352,10.0,2257.7,2256.9,13.44383699]
[1750699258721,10.0,2257.7,2256.9,9.013]
[1750699258949,1.3003,2257.7,2256.9,9.013]
[1750699259158,10.0,2257.7,2256.9,9.013]
[1750699259368,10.0,2257.7,2256.2,0.8101]
[1750699259556,10.0,2257.7,2256.3,9.012]
[1750699259859,10.0,2257.7,2256.4,0.39140063]
[1750699260448,10.0,2257.7,2256.4,4.82312938]
[1750699260650,4.2893,2257.7,2256.5,1.38351294]
[1750699260971,2.989,2257.7,2256.5,9.012]
[1750699261328,2.989,2257.8,2256.6,4.4313046]
[1750699261637,24.49743613,2257.7,2255.9,4.43267332]
[1750699261841,33.50843613,2257.7,2256.1,9.011]
[1750699262040,37.99093613,2257.7,2255.8,9.011]
[1750699262239,10.0,2257.5,2255.9,1.34442024]
[1750699262628,2.989,2257.4,2255.9,15.84185637]
[1750699262831,2.989,2257.4,2256.0,9.01]
[1750699263027,10.0,2257.3,2255.3,0.7505]
[1750699263230,10.0,2257.1,2255.7,4.43310232]
[1750699263457,2.0647,2257.0,2255.8,0.88663694]
[1750699264238,2.0647,2257.0,2255.7,13.44320491]
[1750699264568,2.989,2256.9,2255.7,9.01]
[1750699264867,2.989,2256.9,2255.7,13.44321281]
[1750699265675,10.0,2257.1,2255.8,4.43284369]
[1750699265882,10.647,2257.2,2255.8,4.43284369]
[1750699265883,10.647,2257.2,2255.9,14.49743613]
[1750699266078,10.647,2257.2,2256.0,0.8133]
[1750699266281,10.647,2257.2,2256.3,4.43199581]
[1750699267046,14.72914036,2258.8,2256.7,4.43111748]
[1750699267284,14.49743613,2258.0,2256.0,0.8133]
[1750699267491,10.0,2257.5,2255.6,19.7986]
[1750699267688,10.0,2257.3,2255.7,4.82495442]
[1750699267840,10.0,2257.3,2255.6,23.44133351]
[1750699268045,2.3636,2257.2,2255.7,4.43320271]
[1750699268286,2.3636,2257.2,2255.7,0.23629583]
[1750699268659,10.0,2257.3,2256.1,4.43231653]
[1750699268882,10.0,2257.3,2256.1,0.23625758]
[1750699269047,10.0,2257.3,2256.1,4.6686721]
[1750699269349,10.0,2257.3,2256.0,0.8322]
[1750699269549,10.0,2257.3,2255.8,0.23615087]
[1750699269749,2.3636,2257.2,2255.9,0.37004415]
[1750699269966,2.989,2257.1,2255.9,0.37004415]
[1750699270177,2.989,2257.1,2255.9,5.03916828]
[1750699270412,2.989,2257.1,2255.9,4.8027764]
[1750699270557,12.989,2257.3,2255.9,0.37004415]
[1750699270767,10.0,2257.1,2255.9,0.37004415]
[1750699271088,10.0,2257.1,2255.9,9.37604415]
[1750699271245,10.0,2257.1,2256.0,4.43254782]
[1750699271446,10.647,2257.4,2256.0,15.53433319]
[1750699271682,2.989,2257.7,2256.6,4.43138482]
[1750699271843,2.989,2257.7,2256.7,0.44313848]
[1750699272047,2.989,2258.0,2256.9,4.43080215]
[1750699272266,2.989,2258.0,2256.9,4.43069242]
[1750699272481,2.989,2258.0,2257.0,4.43062451]
[1750699272676,2.989,2258.0,2256.9,4.43078847]
[1750699272862,2.989,2258.0,2257.1,4.43044858]
[1750699273064,2.989,2258.0,2257.0,5.97571735]
[1750699273265,2.989,2258.0,2256.5,12.44454792]
[1750699273464,2.989,2258.0,2256.2,12.44454792]
[1750699273671,2.989,2258.0,2256.4,10.0]
[1750699274085,10.0,2257.8,2256.5,0.23606689]
[1750699274290,10.0,2257.8,2256.3,9.002]
[1750699274479,1.2988,2257.7,2256.4,1.34341052]
[1750699275167,10.0,2258.1,2256.7,4.43108151]
[1750699276163,10.0,2257.8,2256.5,4.43163251]
[1750699276391,10.0,2257.8,2256.7,4.43124335]
[1750699276598,2.988,2257.7,2256.8,0.88626634]
[1750699276796,2.988,2257.7,2256.6,4.43144366]
[1750699277002,2.988,2257.7,2256.5,4.43153314]
[1750699277165,2.988,2257.7,2256.4,13.43275536]
[1750699277664,6.14591404,2258.7,2256.4,13.43275536]
[1750699277665,2.988,2259.0,2257.4,4.42987507]
[1750699277993,10.2988,2258.9,2257.5,9.0]
[1750699278169,10.2988,2258.9,2257.7,4.42916954]
[1750699278362,10.2988,2258.9,2257.7,4.42910791]
[1750699278363,0.2988,2258.9,2257.7,4.42910791]
[1750699278559,10.2988,2258.9,2257.5,9.0]
[1750699278760,1.32868,2258.8,2257.6,0.9]
[1750699279174,10.0,2258.6,2257.6,0.9]
[1750699279967,10.0,2258.6,2257.2,10.0]
[1750699280166,10.0,2258.6,2257.3,4.43007132]
[1750699280408,10.0,2258.6,2257.2,23.42817555]
[1750699280575,10.0,2258.6,2257.3,4.43002481]
[1750699280771,10.0,2258.6,2257.5,4.42949764]
[1750699280971,11.486668,2258.6,2257.6,0.44294976]
[1750699281188,2.988,2258.5,2257.7,4.42917024]
[1750699281573,2.988,2258.5,2257.6,0.44294976]
[1750699281782,2.988,2258.5,2256.9,15.34504939]
[1750699282007,2.988,2258.5,2257.1,14.43033929]
[1750699282188,0.55,2258.8,2257.1,14.43033929]
[1750699282189,10.0,2258.8,2257.3,14.51654939]
[1750699282512,2.988,2259.4,2258.1,4.4283608]
[1750699282717,11.78416,2259.3,2258.2,9.88070509]
[1750699282943,1.78416,2259.3,2257.7,0.822]
[1750699283074,15.06654939,2259.2,2257.4,8.993]
[1750699283282,1.78416,2259.3,2257.4,8.993]
[1750699283283,4.77216,2259.3,2257.7,4.42914844]
[1750699283578,4.77216,2259.3,2258.1,4.42837503]
[1750699283795,1.477216,2259.2,2258.2,0.4428375]
[1750699284211,2.988,2259.3,2258.4,4.42775239]
[1750699284415,2.988,2259.3,2258.5,4.42770948]
[1750699284578,2.988,2259.3,2258.5,4.42756003]
[1750699284778,2.988,2259.3,2258.6,4.42748988]
[1750699284974,2.988,2259.3,2258.6,4.42740488]
[1750699285228,14.74205949,2260.3,2258.3,4.42808489]
[1750699285229,2.987,2259.9,2258.7,0.44274049]
[1750699285440,2.987,2259.9,2258.5,5.23981865]
[1750699285707,2.987,2259.9,2258.5,0.8122]
[1750699286086,2.987,2259.9,2258.8,4.42712868]
[1750699286519,2.987,2259.9,2258.6,13.41743716]
[1750699286871,2.987,2259.9,2258.6,8.99]
[1750699287075,4.2857,2259.9,2258.7,1.42297933]
[1750699287680,10.0,2259.8,2258.1,0.7762]
[1750699287915,10.0,2259.5,2258.1,0.36968363]
[1750699288210,18.989,2259.8,2258.1,0.36968363]
[1750699288211,2.987,2259.4,2258.1,0.36968363]
[1750699288419,2.986,2259.3,2258.1,0.36968363]
[1750699289628,0.2255101,2260.3,2258.3,14.51654939]
[1750699289781,1.33473012,2260.3,2258.7,14.51654939]
[1750699290119,0.2255101,2260.3,2259.1,14.51654939]
[1750699290288,0.2255101,2260.3,2259.2,2.972]
[1750699290614,0.2255101,2260.3,2259.6,4.4254584]
[1750699290818,0.2255101,2260.3,2259.8,0.55]
[1750699291031,14.51654939,2262.1,2260.0,14.51654939]
[1750699291235,14.51654939,2262.1,2259.7,11.4283]
[1750699291236,1.45165494,2262.0,2260.2,0.55]
[1750699291379,2.972,2262.0,2260.4,0.7883]
[1750699291584,2.972,2262.0,2260.4,5.21228465]
[1750699291779,2.972,2262.0,2260.4,0.7883]
[1750699292181,0.2255101,2262.6,2260.5,15.06654939]
[1750699292406,0.2255101,2262.6,2260.9,14.51654939]
[1750699292607,0.2255101,2262.6,2261.0,1.45165494]
[1750699292881,0.2255101,2262.6,2261.1,13.40351716]
[1750699293112,0.2255101,2262.6,2261.0,1.45165494]
[1750699293113,2.972,2262.5,2261.0,1.45165494]
[1750699293427,2.972,2262.5,2260.4,0.7883]
[1750699293428,17.48854939,2262.5,2260.4,0.7883]
[1750699293577,10.0,2262.4,2260.9,8.981]
[1750699293784,2.972,2262.5,2260.9,8.981]
[1750699294189,2.971,2262.4,2260.9,8.981]
[1750699294389,0.2255101,2262.6,2261.1,0.55]
[1750699294598,0.2255101,2262.6,2262.0,14.51654939]
[1750699294789,0.2255101,2262.6,2261.5,4.42178859]
[1750699294993,0.2255101,2262.6,2261.4,15.28924939]
[1750699295196,0.2255101,2262.6,2261.6,13.39752873]
[1750699295503,0.2255101,2262.6,2261.7,4.42145288]
[1750699295704,0.2255101,2262.6,2261.2,4.42234492]
[1750699295705,0.2255101,2262.6,2261.0,0.7697]
[1750699295883,0.2255101,2262.6,2261.3,4.42210387]
[1750699296083,0.54516111,2262.6,2261.2,4.42243056]
[1750699296431,0.54516111,2262.6,2261.1,4.4225771]
[1750699296725,10.0,2262.4,2261.1,8.975]
[1750699296884,10.0,2262.4,2260.6,18.24004939]
[1750699297227,10.0,2262.4,2260.9,13.39798643]
[1750699297396,10.0,2262.4,2260.9,8.975]
[1750699297397,1.2971,2262.3,2260.9,8.975]
[1750699297578,1.2971,2262.3,2260.7,0.36925846]
[1750699298121,1.2971,2262.3,2260.7,9.34425846]
[1750699298324,1.2971,2262.3,2260.7,13.76760433]
[1750699298625,1.2971,2262.3,2260.8,14.51654939]
[1750699298824,2.48971,2262.2,2260.9,13.39401626]
[1750699298994,5.45971,2262.2,2260.6,4.42357529]
[1750699299335,5.45971,2262.2,2260.5,10.0]
[1750699299631,10.0,2262.1,2260.6,13.39459769]
[1750699299921,10.0,2262.1,2260.6,8.971]
[1750699300093,1.545971,2262.0,2260.6,8.969]
[1750699300419,10.0,2262.1,2260.4,8.969]
[1750699300797,14.2377,2262.1,2260.4,8.968]
[1750699300992,14.2377,2262.1,2260.0,22.70650196]
[1750699300993,14.2377,2262.1,2260.0,5.220977]
[1750699301206,14.51654939,2261.9,2260.1,4.79376605]
[1750699301517,11.45165494,2261.8,2260.2,0.84871676]
[1750699301816,11.45165494,2261.8,2260.3,4.42408268]
[1750699302180,11.45165494,2261.8,2260.2,5.27300947]
[1750699302397,1.45165494,2261.8,2260.3,4.42419147]
[1750699302694,2.969,2261.7,2260.3,4.42419147]
[1750699302894,2.48971,2262.2,2260.6,0.7563]
[1750699303219,10.0,2262.0,2260.5,23.48354939]
[1750699303382,10.0,2262.0,2260.2,16.12156615]
[1750699303587,10.0,2262.0,2260.3,8.966]
[1750699303788,1.2969,2261.9,2260.3,8.966]
[1750699304106,10.0,2261.8,2260.1,8.966]
[1750699304289,14.1429,2261.8,2260.1,8.966]
[1750699304490,14.1429,2261.8,2259.9,8.966]
[1750699304699,14.1429,2261.8,2259.7,4.42536619]
[1750699304919,10.0,2261.6,2259.9,4.42495476]
[1750699305124,10.0,2261.4,2259.8,1.33088129]
[1750699305295,10.628,2261.3,2259.9,0.36938918]
[1750699305497,10.0,2261.2,2259.9,0.36938918]
[1750699305711,10.0,2261.0,2259.9,0.36938918]
[1750699305917,5.42065494,2260.9,2259.9,0.36938918]
[1750699306922,10.0,2260.8,2259.9,0.36938918]
[1750699308303,10.0,2260.8,2259.1,27.90707342]
[1750699308598,10.0,2260.8,2259.2,0.36950363]
[1750699309002,2.45165494,2260.9,2259.2,0.36950363]
[1750699309310,2.969,2260.8,2259.6,4.42543472]
[1750699309510,2.969,2260.8,2259.2,0.36950363]
[1750699309712,2.969,2260.8,2259.4,4.42593498]
[1750699312109,0.297,2262.1,2260.8,4.42302503]
[1750699312307,2.97,2262.0,2260.7,8.962]
[1750699312510,10.0,2261.9,2260.3,4.42415982]
[1750699312733,10.0,2261.9,2259.9,4.42493776]
[1750699312734,10.0,2261.7,2259.9,4.42493776]
[1750699312896,10.0,2261.5,2259.7,8.961]
[1750699313097,10.628,2261.6,2259.8,14.51654939]
[1750699313303,10.0,2261.4,2259.9,5.87661198]
[1750699313548,1.0628,2261.5,2259.9,1.45165494]
[1750699313549,2.969,2261.3,2259.9,1.45165494]
[1750699313730,11.0628,2261.5,2259.4,4.42580196]
[1750699313731,2.969,2261.2,2259.4,4.42580196]
[1750699313909,2.969,2261.2,2259.5,4.42562753]
[1750699313910,10.0,2261.1,2259.5,4.42562753]
[1750699314229,10.0,2261.1,2259.4,4.42576319]
[1750699314230,10.0,2261.1,2259.4,4.42592994]
[1750699314432,10.0,2260.9,2259.3,8.959]
[1750699314623,10.0,2260.9,2259.3,13.38503451]
[1750699314828,1.2969,2260.8,2259.3,13.38503451]
[1750699315139,1.2969,2260.8,2259.3,8.959]
[1750699315325,2.97,2260.7,2259.4,4.42576768]
[1750699315634,1.2969,2260.8,2259.4,0.38589489]
[1750699315635,2.97,2260.8,2259.4,0.38589489]
[1750699315934,20.04854939,2261.5,2259.4,0.38589489]
[1750699315935,4.0328,2261.5,2260.0,14.51654939]
[1750699316134,10.0,2261.5,2260.1,10.7962877]
[1750699316344,10.0,2261.5,2260.2,4.42425596]
[1750699316647,10.0,2261.5,2260.1,1.45165494]
[1750699316848,10.0,2261.3,2259.9,0.38555972]
[1750699317159,10.0,2261.3,2259.5,4.42566902]
[1750699317358,10.0,2261.3,2259.6,4.42552899]
[1750699317503,10.0,2261.3,2259.6,0.3855544]
[1750699317703,10.0,2261.1,2259.6,4.42555298]
[1750699318095,1.297,2261.0,2259.7,0.48111074]
[1750699318247,1.297,2261.0,2259.7,0.86666514]
[1750699318572,1.297,2261.0,2259.5,4.4256055]
[1750699318573,2.97,2260.9,2259.5,4.4256055]
[1750699318848,2.97,2260.9,2259.6,0.3855544]
[1750699319036,10.0,2261.3,2259.5,0.3855544]
[1750699319367,10.0,2261.1,2259.6,4.81110038]
[1750699319650,2.956,2261.0,2259.7,0.3855544]
[1750699319851,4.42020264,2262.4,2259.3,8.958]
[1750699319852,0.2956,2260.9,2259.5,4.4256291]
[1750699320047,10.0,2261.4,2259.6,0.38706758]
[1750699320218,2.956,2261.3,2259.7,0.38706233]
[1750699320413,0.23089928,2261.8,2259.8,0.38706233]
[1750699320665,10.0,2261.6,2259.9,1.13946233]
[1750699320983,10.0,2261.3,2259.8,0.38706233]
[1750699321139,10.0,2261.1,2259.3,0.38706233]
[1750699321342,10.0,2261.1,2259.2,11.3972]
[1750699321343,2.956,2261.0,2259.4,0.75653325]
[1750699321527,2.956,2261.0,2259.5,0.36945457]
[1750699321868,2.45165494,2261.2,2259.7,4.425285]
[1750699322026,10.0,2260.9,2259.7,0.36942187]
[1750699322222,2.956,2261.0,2259.7,0.7564842]
[1750699322427,2.956,2261.9,2260.3,14.51654939]
[1750699322727,10.0,2261.8,2260.2,8.955]
[1750699323033,10.0,2261.8,2260.3,0.38607295]
[1750699323236,2.956,2261.9,2260.3,0.38607295]
[1750699323237,1.2956,2261.7,2260.3,4.42408213]
[1750699323468,2.956,2262.0,2260.7,4.4232778]
[1750699323777,2.956,2262.0,2260.5,0.7879]
[1750699323927,10.629,2262.4,2260.7,7.37923346]
[1750699324122,2.956,2262.3,2260.6,14.51654939]
[1750699324359,10.629,2262.4,2260.5,0.7879]
[1750699324657,10.629,2262.4,2260.3,10.628]
[1750699324658,2.956,2262.2,2260.4,8.953]
[1750699324876,10.0,2262.1,2260.4,8.953]
[1750699325366,10.0,2262.1,2260.6,4.42358091]
[1750699325687,1.0629,2262.3,2260.5,4.42376201]
[1750699325688,10.0,2261.9,2260.5,4.42376201]
[1750699325835,10.0,2261.9,2260.4,13.37690442]
[1750699326036,10.0,2261.9,2260.7,4.42328219]
[1750699326253,2.956,2262.1,2260.7,4.42328219]
[1750699326562,2.956,2262.1,2260.8,0.7964]
[1750699327170,2.956,2262.1,2260.4,0.7508]
[1750699327470,2.956,2262.1,2260.0,0.8079]
[1750699327471,10.0,2262.0,2260.0,0.8079]
[1750699327631,24.81214939,2262.0,2260.0,9.7589]
[1750699327824,24.81214939,2262.0,2260.0,14.18365259]
[1750699328068,24.81214939,2262.0,2260.0,0.8079]
[1750699328374,14.1688,2261.5,2259.4,14.345]
[1750699328526,14.1688,2261.5,2259.4,27.71986053]
[1750699328527,10.0,2261.3,2259.4,27.71986053]
[1750699328731,10.627,2261.2,2259.4,23.294]
[1750699329367,10.627,2261.2,2259.4,27.71988036]
[1750699329549,10.627,2261.2,2259.4,27.71983525]
[1750699329726,10.627,2261.2,2259.4,23.294]
[1750699330062,10.627,2261.2,2259.5,4.42573756]
[1750699330063,2.0627,2261.1,2259.5,4.42573756]
[1750699330268,10.627,2261.2,2259.8,4.4251678]
[1750699330443,10.627,2261.2,2259.7,18.94183026]
[1750699330843,10.0,2261.1,2259.8,4.42517036]
[1750699331043,10.0,2261.1,2259.7,14.51654939]
[1750699331235,10.0,2261.1,2259.8,8.948]
[1750699331436,2.0627,2261.0,2259.9,1.1904]
[1750699332152,2.0627,2261.0,2259.4,15.8148715]
[1750699332153,2.0627,2261.0,2259.7,8.947]
[1750699332355,2.0627,2261.0,2259.4,11.389]
[1750699332542,2.0627,2261.0,2258.8,10.0]
[1750699332543,2.0627,2261.0,2259.5,9.31645457]
[1750699332961,2.0627,2261.0,2259.7,4.4252473]
[1750699333265,10.627,2261.2,2259.5,9.31645457]
[1750699333266,10.0,2260.8,2259.5,9.31645457]
[1750699333476,10.0,2260.8,2259.6,8.946]
[1750699333983,10.627,2261.2,2259.9,4.42483455]
[1750699334337,10.0,2261.1,2259.5,0.36945457]
[1750699334538,10.0,2260.3,2259.5,0.36945457]
[1750699334785,5.19707066,2260.2,2259.5,0.36945457]
[1750699334979,8.946,2260.8,2258.5,0.7913]
[1750699334980,10.0,2260.0,2258.5,0.7913]
[1750699335134,2.956,2259.9,2258.6,0.36960179]
[1750699335670,10.0,2259.8,2258.6,0.36960179]
[1750699336472,2.957,2260.4,2258.9,5.17784878]
[1750699336677,10.0,2260.3,2258.9,5.17794031]
[1750699336851,1.2957,2260.2,2259.0,0.9605026]
[1750699337055,10.0,2260.3,2259.0,0.9605026]
[1750699337376,10.0,2260.3,2259.0,4.42665156]
[1750699337682,10.0,2260.3,2259.0,0.36953634]
[1750699337993,14.9868,2260.9,2259.4,4.42576339]
[1750699338307,2.957,2260.6,2259.5,0.7546]
[1750699338619,3.2527,2260.6,2259.6,0.96996]
[1750699338910,10.631,2260.9,2259.8,4.4250737]
[1750699339077,10.631,2260.9,2259.6,5.39545541]
[1750699339263,10.631,2260.9,2259.7,4.42527887]
[1750699339588,10.631,2260.9,2259.9,4.42496444]
[1750699339790,10.631,2260.9,2259.7,4.4252596]
[1750699339791,10.631,2260.9,2259.6,0.96996]